fUST/lending_fUST_20250818
["ID","MTS","AMOUNT","RATE_DAILY","PERIOD"]
[380063069,1755523832779,-480.0,0.00021927,3]
[380063070,1755523832789,-657.09,0.0002204,3]
[380063071,1755523832798,-178.5,0.000221,2]
[380063072,1755523832807,-480.0,0.00022119,3]
[380063073,1755523832816,-1185.56,0.00022124,3]
[380063074,1755523832826,-1057.0,0.00022125,2]
[380063075,1755523832835,-151.0,0.00022125,2]
[380063076,1755523832844,-17842.522448,0.00022125,2]
[380063077,1755523832854,-966.02,0.00022191,3]
[380063078,1755523832863,-480.0,0.00022191,3]
[380063079,1755523832872,-480.0,0.00022191,3]
[380063080,1755523832881,-941.84,0.00022191,3]
[380063081,1755523832891,-629.22,0.00022191,3]
[380063082,1755523832901,-641.92,0.00022191,3]
[380063083,1755523832910,-480.0,0.00022191,3]
[380063084,1755523832920,-480.0,0.00022191,3]
[380063085,1755523832929,-480.0,0.00022191,3]
[380063086,1755523832939,-480.0,0.00022191,3]
[380063087,1755523832948,-480.0,0.00022191,3]
[380063088,1755523832957,-494.34,0.00022191,3]
[380063089,1755523832967,-480.0,0.00022191,3]
[380063090,1755523832976,-490.24362679,0.00022191,3]
[380063091,1755523832985,-124.12814842,0.00022201,3]
[380063092,1755523832995,-480.0,0.00022201,3]
[380063093,1755523833007,-450.75694331,0.00022201,3]
[380063094,1755523833019,-441.38130171,0.00022201,3]
[380063095,1755523833028,-480.0,0.00022201,3]
[380063096,1755523833038,-417.14854858,0.00022201,3]
[380063097,1755523833048,-2588.08,0.00022201,3]
[380063098,1755523833058,-1094.74,0.00022201,3]
[380063099,1755523833067,-1572.95,0.00022201,3]
[380063100,1755523833077,-330.24,0.00022201,3]
[380063101,1755523833087,-480.0,0.00022201,3]
[380063102,1755523833097,-168.0,0.00022205,2]
[380063103,1755523833107,-500.0,0.0002226,2]
[380063104,1755523833116,-500.0,0.0002226,2]
[380063105,1755523833126,-324.40108956,0.00022313,2]
[380063106,1755523833136,-975.22,0.00022314,3]
[380063107,1755523833146,-480.0,0.00022314,3]
[380063108,1755523833156,-480.0,0.00022314,3]
[380063109,1755523833165,-480.0,0.00022314,3]
[380063110,1755523833176,-613.45,0.00022314,3]
[380063111,1755523833185,-480.0,0.00022314,3]
[380063112,1755523833194,-657.09,0.00022314,3]
[380063113,1755523833204,-200.0,0.00022354,20]
[380063114,1755523833213,-200.0,0.00022354,20]
[380063115,1755523833223,-200.0,0.00022354,20]
[380063116,1755523833232,-200.0,0.00022354,20]
[380063117,1755523833243,-200.0,0.00022354,20]
[380063118,1755523833252,-200.0,0.00022354,20]
[380063119,1755523833262,-200.0,0.00022354,20]
[380063120,1755523833271,-200.0,0.00022354,20]
[380063121,1755523833281,-200.0,0.00022354,20]
[380063122,1755523833290,-200.0,0.00022354,20]
[380063123,1755523833300,-158.88003166,0.00022365,2]
[380063124,1755523833310,-297.0035989,0.00022365,2]
[380063125,1755523833319,-701.15,0.00022393,3]
[380063126,1755523833329,-480.0,0.00022393,3]
[380063127,1755523833338,-611.58,0.00022393,3]
[380063128,1755523833348,-540.78,0.00022393,3]
[380063129,1755523833357,-800.03,0.00022393,3]
[380063130,1755523833367,-655.6,0.00022393,3]
[380063131,1755523833377,-480.0,0.00022393,3]
[380063132,1755523833387,-1840.68,0.00022397,3]
[380063133,1755523833396,-1215.60019452,0.00022397,3]
[380063134,1755523833412,-480.0,0.00022191,3]
[380063135,1755523833423,-1287.84980548,0.00022397,3]
[380063136,1755523833432,-577.03,0.00022398,3]
[380063137,1755523833442,-2928.79,0.00022398,3]
[380063138,1755523833452,-1119.22,0.00022398,3]
[380063139,1755523833462,-1185.56,0.00022398,3]
[380063140,1755523833471,-13468.64706129,0.0002242,2]
[380063141,1755523833483,-847.999995,0.0002242,2]
[380063142,1755523833495,-55413.04145336,0.0002242,2]
[380063143,1755523833505,-293.0,0.00022422,2]
[380063144,1755523833514,-1828.45583684,0.00022436,2]
[380063145,1755523833524,-480.0,0.00022465,3]
[380063146,1755523833533,-480.0,0.00022465,3]
[380063147,1755523833543,-480.0,0.00022465,3]
[380063148,1755523833552,-480.0,0.00022465,3]
[380063149,1755523833562,-1239.66,0.00022465,3]
[380063150,1755523833572,-3345.86,0.00022465,3]
[380063151,1755523833581,-2119.13,0.00022465,3]
[380063152,1755523833591,-480.0,0.00022465,3]
[380063153,1755523833600,-480.0,0.00022465,3]
[380063154,1755523833610,-480.0,0.00022465,3]
[380063155,1755523833619,-480.0,0.00022465,3]
[380063156,1755523833629,-480.0,0.00022465,3]
[380063157,1755523833638,-4538.59,0.00022465,3]
[380063158,1755523833649,-480.0,0.00022465,3]
[380063159,1755523833659,-480.0,0.00022465,3]
[380063160,1755523833669,-609.6,0.00022465,3]
[380063161,1755523833681,-480.0,0.00022465,3]
[380063162,1755523833691,-480.0,0.00022465,3]
[380063163,1755523833702,-480.0,0.00022465,3]
[380063164,1755523833711,-728.89,0.00022465,3]
[380063165,1755523833721,-554.4,0.00022465,3]
[380063166,1755523833731,-480.0,0.00022465,3]
[380063167,1755523833741,-480.0,0.00022465,3]
[380063168,1755523833751,-480.0,0.00022465,3]
[380063169,1755523833761,-516.6,0.00022465,3]
[380063170,1755523833772,-966.02,0.00022465,3]
[380063171,1755523833782,-480.0,0.00022465,3]
[380063172,1755523833791,-480.0,0.00022465,3]
[380063173,1755523833800,-941.84,0.00022465,3]
[380063174,1755523833810,-629.22,0.00022465,3]
[380063175,1755523833820,-641.92,0.00022465,3]
[380063176,1755523833830,-480.0,0.00022465,3]
[380063177,1755523833840,-480.0,0.00022465,3]
[380063178,1755523833849,-480.0,0.00022465,3]
[380063179,1755523833859,-480.0,0.00022465,3]
[380063180,1755523833869,-480.0,0.00022465,3]
[380063181,1755523833878,-494.34,0.00022465,3]
[380063182,1755523833888,-480.0,0.00022465,3]
[380063183,1755523833898,-500.79919152,0.00022473,2]
[380063184,1755523833907,-501.14541372,0.00022473,2]
[380063185,1755523833916,-500.58611904,0.00022473,2]
[380063186,1755523833927,-501.26524356,0.00022473,2]
[380063187,1755523833936,-501.64261294,0.00022473,2]
[380063188,1755523833946,-500.0,0.00022473,2]
[380063189,1755523833956,-500.0,0.00022473,2]
[380063190,1755523833965,-500.0,0.00022473,2]
[380063191,1755523833975,-502.10486458,0.00022473,2]
[380063192,1755523833984,-330.148708,0.00022473,2]
[380063193,1755523833995,-500.0,0.00022473,2]
[380063194,1755523834007,-204.54244079,0.00022473,2]
[380063195,1755523834020,-500.0,0.00022473,2]
[380063196,1755523834032,-501.72996674,0.00022473,2]
[380063197,1755523834042,-500.0,0.00022473,2]
[380063198,1755523834052,-500.0,0.00022473,2]
[380063199,1755523834066,-500.0,0.00022473,2]
[380063200,1755523834079,-500.0,0.00022473,2]
[380063201,1755523834091,-500.0,0.00022473,2]
[380063202,1755523834101,-500.0,0.00022473,2]
[380063203,1755523834113,-500.0,0.00022473,2]
[380063204,1755523834123,-500.51507045,0.00022473,2]
[380063205,1755523834135,-505.96788698,0.00022473,2]
[380063206,1755523834145,-500.0,0.00022473,2]
[380063207,1755523834155,-500.0,0.00022473,2]
[380063208,1755523834165,-554.74712268,0.00022473,2]
[380063209,1755523834175,-500.93104883,0.00022473,2]
[380063210,1755523834185,-500.0,0.00022473,2]
[380063211,1755523834194,-500.0,0.00022473,2]
[380063212,1755523834204,-500.0,0.00022473,2]
[380063213,1755523834213,-500.0,0.00022473,2]
[380063214,1755523834223,-612.22344823,0.00022473,2]
[380063215,1755523834232,-500.0,0.00022473,2]
[380063216,1755523834241,-500.0,0.00022473,2]
[380063217,1755523834251,-500.0,0.00022473,2]
[380063218,1755523834260,-501.97212271,0.00022473,2]
[380063219,1755523834270,-413.4443185,0.00022473,2]
[380063220,1755523834279,-502.98473716,0.00022473,2]
[380063221,1755523834288,-501.07116851,0.00022473,2]
[380063222,1755523834298,-200.66618042,0.00022473,2]
[380063223,1755523834307,-500.0,0.00022473,2]
[380063224,1755523834317,-480.0,0.00022475,3]
[380063225,1755523834326,-480.0,0.00022475,3]
[380063226,1755523834335,-864.26576919,0.00022475,3]
[380063239,1755523838408,-480.0,0.00021917,3]
[380063240,1755523838418,-349.92113084,0.00021917,3]
[380063248,1755523838607,-66.9435083,0.00021917,3]
[380063249,1755523838649,-63.13536086,0.00021917,3]
[380063250,1755523838690,-233.11463914,0.00021917,3]
[380063251,1755523838702,-246.88536086,0.00021917,3]
[380063252,1755523838712,-495.71,0.00021927,3]
[380063253,1755523838722,-480.0,0.00021927,3]
[380063254,1755523838731,-480.0,0.00022191,3]
[380063255,1755523838741,-480.0,0.00022191,3]
[380063256,1755523838751,-495.71,0.00022201,3]
[380063257,1755523838759,-480.0,0.00022201,3]
[380063258,1755523838769,-542.13004651,0.00022465,3]
[380063259,1755523838778,-480.0,0.00022465,3]
[380063260,1755523838787,-309.71346697,0.00022465,3]
[380063261,1755523838796,-303.74423081,0.00022475,3]
[380063262,1755523838806,-480.0,0.00022475,3]
[380063263,1755523838815,-814.2,0.00022475,3]
[380063264,1755523838824,-480.0,0.00022475,3]
[380063265,1755523838833,-287.67,0.00022475,3]
[380063266,1755523838842,-2588.08,0.00022475,3]
[380063267,1755523838851,-1094.74,0.00022475,3]
[380063268,1755523838860,-1572.95,0.00022475,3]
[380063269,1755523838869,-480.0,0.00022475,3]
[380063270,1755523838879,-495.71,0.00022475,3]
[380063271,1755523838888,-480.0,0.00022475,3]
[380063272,1755523838897,-595.95537817,0.000225,3]
[380063273,1755523839006,-1025.92947994,0.000225,3]
[380063274,1755523839024,-589.12514189,0.000225,3]
[380063275,1755523839034,-223.36381211,0.000225,30]
[380063276,1755523839043,-1144.49,0.000225,7]
[380063277,1755523839053,-480.0,0.0002252,3]
[380063278,1755523839063,-480.0,0.0002252,3]
[380063279,1755523839071,-296.27285758,0.0002252,3]
[380063280,1755523839083,-183.72714242,0.0002252,3]
[380063281,1755523839092,-480.0,0.0002252,3]
[380063282,1755523839102,-480.0,0.0002252,3]
[380063283,1755523839111,-987.66,0.0002252,3]
[380063284,1755523839122,-501.37747728,0.0002252,2]
[380063285,1755523839131,-480.0,0.0002252,3]
[380063286,1755523839141,-480.0,0.0002252,3]
[380063287,1755523839150,-527.93349322,0.0002252,3]
[380063288,1755523839160,-480.0,0.0002252,3]
[380063290,1755523839169,-480.0,0.0002252,3]
[380063292,1755523839180,-480.0,0.0002252,3]
[380063294,1755523839190,-158.8928947,0.0002252,3]
[380063296,1755523839201,-414.5971053,0.0002252,3]
[380063298,1755523839210,-302.66064333,0.0002252,3]
[380063300,1755523839219,-480.0,0.0002252,3]
[380063302,1755523839229,-480.0,0.0002252,3]
[380063304,1755523839239,-480.0,0.0002252,3]
[380063306,1755523839249,-480.0,0.0002252,3]
[380063307,1755523839258,-336.6607761,0.0002252,3]
[380063308,1755523839268,-480.0,0.0002252,3]
[380063309,1755523839277,-480.0,0.0002252,3]
[380063310,1755523839287,-390.99,0.0002252,3]
[380063311,1755523839296,-480.0,0.0002252,3]
[380063312,1755523839305,-480.0,0.0002252,3]
[380063313,1755523839315,-1379.16,0.0002252,3]
[380063314,1755523839324,-480.0,0.0002252,3]
[380063315,1755523839334,-480.0,0.0002252,3]
[380063316,1755523839343,-480.0,0.0002252,3]
[380063317,1755523839352,-602.90007192,0.0002252,3]
[380063318,1755523839361,-480.0,0.0002252,3]
[380063319,1755523839371,-480.0,0.0002252,3]
[380063320,1755523839380,-480.0,0.0002252,3]
[380063321,1755523839390,-480.0,0.0002252,3]
[380063322,1755523839399,-461.72111974,0.0002252,3]
[380063323,1755523839409,-480.0,0.0002252,3]
[380063324,1755523839419,-460.0,0.0002252,3]
[380063325,1755523839429,-460.0,0.0002252,3]
[380063326,1755523839439,-480.0,0.0002252,3]
[380063327,1755523839448,-480.0,0.0002252,3]
[380063328,1755523839457,-480.0,0.0002252,3]
[380063329,1755523839465,-462.0341783,0.0002252,3]
[380063330,1755523839474,-430.89970971,0.0002252,3]
[380063331,1755523839483,-460.0,0.0002252,3]
[380063332,1755523839493,-450.00361395,0.0002252,3]
[380063333,1755523839502,-460.0,0.0002252,3]
[380063334,1755523839511,-480.0,0.0002252,3]
[380063335,1755523839520,-480.0,0.0002252,3]
[380063336,1755523839530,-480.0,0.0002252,3]
[380063337,1755523839541,-480.0,0.0002252,3]
[380063338,1755523839551,-480.0,0.0002252,3]
[380063339,1755523839560,-480.0,0.0002252,2]
[380063340,1755523839570,-461.71536786,0.0002252,3]
[380063341,1755523839579,-460.0,0.0002252,3]
[380063342,1755523839589,-461.21713178,0.0002252,3]
[380063343,1755523839598,-480.0,0.0002252,3]
[380063344,1755523839608,-480.0,0.0002252,3]
[380063345,1755523839617,-480.0,0.0002252,3]
[380063347,1755523839627,-461.18108894,0.0002252,3]
[380063349,1755523839635,-500.0,0.0002252,3]
[380063351,1755523839645,-480.0,0.0002252,3]
[380063353,1755523839653,-480.0,0.0002252,3]
[380063355,1755523839663,-480.0,0.0002252,3]
[380063357,1755523839672,-462.08453455,0.0002252,3]
[380063358,1755523839682,-480.0,0.0002252,3]
[380063360,1755523839690,-480.0,0.0002252,3]
[380063362,1755523839699,-480.0,0.0002252,3]
[380063364,1755523839709,-480.0,0.0002252,3]
[380063366,1755523839718,-480.0,0.0002252,3]
[380063368,1755523839727,-480.0,0.0002252,3]
[380063370,1755523839737,-600.0,0.00022566,20]
[380063372,1755523839746,-318.25109058,0.00022588,3]
[380063374,1755523839756,-613.45,0.00022588,3]
[380063376,1755523839765,-480.0,0.00022588,3]
[380063378,1755523839775,-657.09,0.00022588,3]
[380063380,1755523839785,-701.15,0.00022667,3]
[380063382,1755523839795,-480.0,0.00022667,3]
[380063384,1755523839804,-611.58,0.00022667,3]
[380063386,1755523839813,-800.03,0.00022667,3]
[380063388,1755523839822,-655.6,0.00022667,3]
[380063390,1755523839832,-480.0,0.00022667,3]
[380063392,1755523839841,-1840.68,0.00022671,3]
[380063394,1755523839850,-2503.45,0.00022671,3]
[380063396,1755523839860,-577.03,0.00022672,3]
[380063398,1755523839869,-2928.79,0.00022672,3]
[380063400,1755523839879,-1119.22,0.00022672,3]
[380063402,1755523839888,-1185.56,0.00022672,3]
[380063405,1755523839898,-370.72007388,0.0002271,2]
[380063407,1755523839907,-480.0,0.00022739,3]
[380063409,1755523839917,-480.0,0.00022739,3]
[380063412,1755523839927,-480.0,0.00022739,3]
[380063414,1755523839937,-480.0,0.00022739,3]
[380063416,1755523839947,-580.84394444,0.00022739,3]
[380063484,1755523840588,-411.53802869,0.00022191,3]
[380063486,1755523840598,-658.81605556,0.00022739,3]
[380063488,1755523840608,-1766.19597389,0.00022739,3]
[380063490,1755523840620,-1579.66402611,0.00022739,3]
[380063492,1755523840630,-2119.13,0.00022739,3]
[380063494,1755523840640,-480.0,0.00022739,3]
[380063496,1755523840650,-480.0,0.00022739,3]
[380063498,1755523840659,-480.0,0.00022739,3]
[380063500,1755523840668,-480.0,0.00022739,3]
[380063502,1755523840683,-480.0,0.00022739,3]
[380063504,1755523840693,-4538.59,0.00022739,3]
[380063506,1755523840703,-480.0,0.00022739,3]
[380063508,1755523840713,-480.0,0.00022739,3]
[380063510,1755523840722,-609.6,0.00022739,3]
[380063512,1755523840732,-480.0,0.00022739,3]
[380063514,1755523840741,-480.0,0.00022739,3]
[380063515,1755523840751,-480.0,0.00022739,3]
[380063516,1755523840760,-728.89,0.00022739,3]
[380063517,1755523840770,-554.4,0.00022739,3]
[380063518,1755523840779,-480.0,0.00022739,3]
[380063519,1755523840788,-480.0,0.00022739,3]
[380063520,1755523840797,-480.0,0.00022739,3]
[380063521,1755523840807,-516.6,0.00022739,3]
[380063522,1755523840816,-966.02,0.00022739,3]
[380063523,1755523840826,-480.0,0.00022739,3]
[380063524,1755523840835,-480.0,0.00022739,3]
[380063525,1755523840844,-941.84,0.00022739,3]
[380063526,1755523840853,-629.22,0.00022739,3]
[380063527,1755523840863,-641.92,0.00022739,3]
[380063528,1755523840872,-480.0,0.00022739,3]
[380063529,1755523840882,-480.0,0.00022739,3]
[380063530,1755523840891,-480.0,0.00022739,3]
[380063531,1755523840910,-480.0,0.00022739,3]
[380063532,1755523840919,-480.0,0.00022739,3]
[380063533,1755523840931,-494.34,0.00022739,3]
[380063534,1755523840941,-480.0,0.00022739,3]
[380063535,1755523840951,-480.0,0.00022739,3]
[380063536,1755523840960,-480.0,0.00022749,3]
[380063537,1755523840969,-220.84946215,0.00022749,3]
[380063538,1755523840978,-1168.01,0.00022749,3]
[380063541,1755523841091,-480.0,0.00022749,3]
[380063543,1755523841100,-814.2,0.00022749,3]
[380063544,1755523841110,-480.0,0.00022749,3]
[380063545,1755523841120,-2588.08,0.00022749,3]
[380063546,1755523841129,-1094.74,0.00022749,3]
[380063547,1755523841139,-1572.95,0.00022749,3]
[380063548,1755523841149,-480.0,0.00022749,3]
[380063549,1755523841158,-495.71,0.00022749,3]
[380063550,1755523841167,-480.0,0.00022749,3]
[380063551,1755523841178,-500.0,0.00022773,2]
[380063552,1755523841187,-500.0,0.00022773,2]
[380063553,1755523841197,-500.0,0.00022773,2]
[380063554,1755523841206,-229.65860377,0.00022773,2]
[380063555,1755523841216,-500.0,0.00022773,2]
[380063556,1755523841225,-500.0,0.00022773,2]
[380063557,1755523841234,-500.0,0.00022773,2]
[380063558,1755523841243,-500.0,0.00022773,2]
[380063559,1755523841253,-1828.45583684,0.00022781,2]
[380063560,1755523841262,-440.0,0.00022794,3]
[380063561,1755523841271,-480.0,0.00022794,3]
[380063562,1755523841282,-480.0,0.00022794,3]
[380063563,1755523841291,-480.0,0.00022794,3]
[380063564,1755523841301,-480.0,0.00022794,3]
[380063565,1755523841311,-987.66,0.00022794,3]
[380063566,1755523841321,-480.0,0.00022794,3]
[380063567,1755523841330,-480.0,0.00022794,3]
[380063568,1755523841339,-480.0,0.00022794,3]
[380063569,1755523841349,-480.0,0.00022794,3]
[380063570,1755523841359,-573.49,0.00022794,3]
[380063571,1755523841368,-480.0,0.00022794,3]
[380063572,1755523841377,-480.0,0.00022794,3]
[380063573,1755523841387,-480.0,0.00022794,3]
[380063574,1755523841396,-480.0,0.00022794,3]
[380063575,1755523841405,-548.20227018,0.00022794,3]
[380063576,1755523841414,-480.0,0.00022794,3]
[380063577,1755523841423,-613.83298754,0.00022794,3]
[380063578,1755523841434,-480.0,0.00022794,3]
[380063579,1755523841443,-1379.16,0.00022794,3]
[380063580,1755523841452,-480.0,0.00022794,3]
[380063581,1755523841461,-480.0,0.00022794,3]
[380063582,1755523841471,-480.0,0.00022794,3]
[380063583,1755523841480,-480.0,0.00022794,3]
[380063584,1755523841490,-507.45,0.00022794,3]
[380063585,1755523841499,-480.0,0.00022794,3]
[380063586,1755523841509,-172.3856974,0.00022794,3]
[380063587,1755523841518,-480.0,0.00022794,3]
[380063588,1755523841527,-480.0,0.00022794,3]
[380063589,1755523841537,-480.0,0.00022794,3]
[380063590,1755523841547,-480.0,0.00022794,3]
[380063591,1755523841557,-445.31582035,0.00022794,3]
[380063592,1755523841567,-480.0,0.00022794,3]
[380063593,1755523841576,-480.0,0.00022794,3]
[380063594,1755523841586,-442.84320267,0.00022794,3]
[380063595,1755523841596,-480.0,0.00022794,3]
[380063596,1755523841605,-480.0,0.00022794,2]
[380063597,1755523841616,-440.0,0.00022794,3]
[380063599,1755523841628,-480.0,0.00022794,3]
[380063600,1755523841639,-480.0,0.00022794,3]
[380063602,1755523841652,-500.0,0.00022794,3]
[380063603,1755523841671,-480.0,0.00022794,3]
[380063604,1755523841692,-480.0,0.00022794,3]
[380063605,1755523841704,-480.0,0.00022794,3]
[380063606,1755523841713,-480.0,0.00022794,3]
[380063607,1755523841723,-480.0,0.00022794,3]
[380063608,1755523841732,-480.0,0.00022794,3]
[380063609,1755523841742,-480.0,0.00022794,3]
[380063610,1755523841751,-480.0,0.00022794,3]
[380063611,1755523841761,-431.15,0.00022794,2]
[380063612,1755523841770,-3417.07,0.000228,7]
[380063613,1755523841780,-158.0,0.000228,4]
[380063614,1755523841789,-161.97678504,0.000228,4]
[380063615,1755523841799,-160.0,0.0002282,2]
[380063616,1755523841808,-613.45,0.00022862,3]
[380063617,1755523841818,-480.0,0.00022862,3]
[380063618,1755523841827,-657.09,0.00022862,3]
[380063619,1755523841837,-701.15,0.00022941,3]
[380063620,1755523841848,-480.0,0.00022941,3]
[380063621,1755523841857,-611.58,0.00022941,3]
[380063622,1755523841867,-800.03,0.00022941,3]
[380063623,1755523841876,-655.6,0.00022941,3]
[380063624,1755523841884,-480.0,0.00022941,3]
[380063625,1755523841894,-1840.68,0.00022945,3]
[380063626,1755523841903,-2503.45,0.00022945,3]
[380063627,1755523841912,-577.03,0.00022946,3]
[380063628,1755523841921,-2928.79,0.00022946,3]
[380063629,1755523841932,-1119.22,0.00022946,3]
[380063630,1755523841942,-1185.56,0.00022946,3]
[380063631,1755523841951,-168.0,0.00022978,2]
[380063632,1755523841960,-168.0,0.00022984,2]
[380063633,1755523841970,-892.01985561,0.0002299,2]
[380063634,1755523841979,-10833.1,0.00023,7]
[380063635,1755523841989,-12683.78573522,0.00023,7]
[380063636,1755523841999,-232.18122251,0.00023,3]
[380063637,1755523842009,-160.0,0.00023,2]
[380063638,1755523842023,-216.85420361,0.00023,3]
[380063639,1755523842032,-227.08076269,0.00023012,2]
[380063640,1755523842041,-480.0,0.00023013,3]
[380063641,1755523842051,-480.0,0.00023013,3]
[380063642,1755523842062,-480.0,0.00023013,3]
[380063643,1755523842071,-480.0,0.00023013,3]
[380063644,1755523842080,-1239.66,0.00023013,3]
[380063645,1755523842090,-1354.28352831,0.00023013,3]
[380063709,1755523846576,-464.18,0.00021917,3]
[380063710,1755523846598,-43.25706392,0.00021917,3]
[380063722,1755523949698,1000.0,0.00028767,120]
[380063723,1755523988714,983.04776194,0.00028767,120]
[380063724,1755524046818,272.91066154,0.00019945,2]
[380063727,1755524167366,330.0,0.00028767,120]
[380063729,1755524336885,333.0,0.0002876,120]
[380063730,1755524353079,1000.0,0.00028,120]
[380063731,1755524359981,18459.0,0.00026995,120]
[380063732,1755524492380,1000.0,0.00028767,120]
[380063733,1755524511043,500.0,0.00028767,120]
[380063739,1755524649884,263.7933146,0.00028,120]
[380063743,1755524754086,-177.13331112,0.00018773,2]
[380063744,1755524754110,-2684.04810241,0.00019354,2]
[380063745,1755524754268,-676.1230685,0.000199,2]
[380063746,1755524754290,-210.754337,0.00019989,2]
[380063747,1755524754316,-150.0,0.00019991,2]
[380063748,1755524754339,-676.12306821,0.00020316,2]
[380063749,1755524754363,-676.12306821,0.00020731,2]
[380063750,1755524754389,-225.62,0.0002087,2]
[380063751,1755524754414,-676.12306821,0.00021147,2]
[380063752,1755524754435,-2348.27220598,0.0002139,2]
[380063753,1755524754459,-484.7084002,0.00021471,2]
[380063754,1755524754480,-482.28686095,0.00021471,2]
[380063755,1755524754501,-483.19057629,0.00021471,2]
[380063756,1755524754523,-1200.0,0.00021471,2]
[380063757,1755524754543,-484.3927932,0.00021471,2]
[380063758,1755524754564,-300.0,0.00021472,2]
[380063759,1755524754586,-480.0,0.00021472,2]
[380063760,1755524754606,-480.0,0.00021472,2]
[380063761,1755524754627,-973.34,0.00021472,2]
[380063762,1755524754648,-203.09447796,0.00021472,2]
[380063763,1755524754669,-501.47743025,0.00021473,2]
[380063764,1755524754689,-502.14370261,0.00021473,2]
[380063765,1755524754713,-159.55032346,0.00021473,2]
[380063766,1755524754734,-360.27169985,0.00021473,2]
[380063767,1755524754754,-500.0,0.00021473,2]
[380063768,1755524754776,-41925.75355783,0.00021473,2]
[380063769,1755524754797,-546.34,0.00021495,2]
[380063770,1755524754818,-1200.0,0.00021498,2]
[380063771,1755524754839,-153.97632131,0.00021499,2]
[380063772,1755524754860,-500.0,0.00021499,2]
[380063773,1755524754882,-500.0,0.00021499,2]
[380063774,1755524754906,-500.0,0.00021499,2]
[380063775,1755524754928,-207.98810641,0.00021499,2]
[380063776,1755524754953,-552.08332595,0.00021499,2]
[380063777,1755524754977,-480.0,0.00021499,3]
[380063778,1755524755000,-480.0,0.00021499,3]
[380063779,1755524755022,-607.4,0.00021499,2]
[380063780,1755524755049,-480.0,0.00021499,2]
[380063781,1755524755073,-480.86,0.00021499,2]
[380063782,1755524755096,-480.0,0.00021499,2]
[380063783,1755524755121,-1789.89,0.00021499,2]
[380063784,1755524755143,-480.0,0.00021499,2]
[380063785,1755524755167,-480.0,0.00021499,2]
[380063786,1755524755187,-460.48778945,0.00021499,2]
[380063787,1755524755212,-2448.45,0.00021499,2]
[380063788,1755524755234,-503.43527177,0.00021499,2]
[380063789,1755524755257,-564.11,0.00021499,2]
[380063790,1755524755280,-932.68,0.00021499,2]
[380063791,1755524755302,-265.08669457,0.00021499,2]
[380063792,1755524755326,-302.69737373,0.000215,2]
[380063796,1755524804181,-150.0,0.00019937,2]
[380063797,1755524804204,-216.06,0.00020886,2]
[380063798,1755524804227,-80.09369234,0.0002128,2]
[380063799,1755524835090,-150.10364911,0.000199,2]
[380063801,1755524841085,-54.40412551,0.000199,2]
[380063802,1755524841107,-204.50777461,0.00020402,2]
[380063803,1755524841129,-204.50777461,0.00020904,2]
[380063804,1755524841151,-188.92668888,0.0002128,2]
[380063805,1755524841172,-204.50777461,0.00021407,2]
[380063806,1755524841193,-122.97984784,0.0002147,2]
[380063814,1755524960135,-150.0,0.00019933,2]
[380063815,1755524960663,-204.15225481,0.00020881,2]